[Event "Late-Titled-Tuesday-Blitz-May-28-2024"]
[Site "Chess.com"]
[Date "2024.05.28"]
[Round "3"]
[White "WoodlandMagic"]
[Black "manitodeplomo"]
[Result "1-0"]
[WhiteElo "2837"]
[BlackElo "2512"]
[TimeControl "180+1"]
[EndTime "14:27:37 PDT"]
[Termination "WoodlandMagic won by resignation"]

1. Nc3 {[%clk 0:03:00.9]} 1... c5 {[%clk 0:02:54.2]} 2. Nf3 {[%clk 0:02:55.6]}
2... e6 {[%clk 0:02:53.4]} 3. g3 {[%clk 0:02:52.5]} 3... a6 {[%clk 0:02:51]} 4.
Bg2 {[%clk 0:02:52.4]} 4... b5 {[%clk 0:02:51.4]} 5. O-O {[%clk 0:02:51.2]} 5...
Bb7 {[%clk 0:02:51.4]} 6. d3 {[%clk 0:02:44.9]} 6... Nf6 {[%clk 0:02:46.7]} 7.
e4 {[%clk 0:02:41.5]} 7... d6 {[%clk 0:02:47]} 8. h3 {[%clk 0:02:26.5]} 8... Nc6
{[%clk 0:02:41.6]} 9. Re1 {[%clk 0:02:21.3]} 9... Be7 {[%clk 0:02:41]} 10. e5
{[%clk 0:02:15.4]} 10... dxe5 {[%clk 0:02:34.5]} 11. Nxe5 {[%clk 0:02:14.3]}
11... Qc7 {[%clk 0:02:32]} 12. Bf4 {[%clk 0:02:11.4]} 12... Bd6 {[%clk
0:02:31.5]} 13. Ng4 {[%clk 0:01:49]} 13... Nxg4 {[%clk 0:02:05.4]} 14. Nd5
{[%clk 0:01:47.1]} 14... Qd8 {[%clk 0:02:02.6]} 15. Qxg4 {[%clk 0:01:46.4]}
15... Kf8 {[%clk 0:01:14.7]} 16. Bg5 {[%clk 0:01:42.1]} 16... h5 {[%clk
0:00:54.7]} 17. Qh4 {[%clk 0:01:32]} 17... f6 {[%clk 0:00:53.4]} 18. Nxf6 {[%clk
0:01:26.9]} 18... gxf6 {[%clk 0:00:54.3]} 19. Bxf6 {[%clk 0:01:26]} 19... Be7
{[%clk 0:00:52.6]} 20. Rxe6 {[%clk 0:01:25.2]} 20... Rh7 {[%clk 0:00:28.8]} 21.
Bxc6 {[%clk 0:01:21.3]} 21... Bxc6 {[%clk 0:00:26.7]} 22. Rxc6 {[%clk
0:01:21.1]} 22... Qd5 {[%clk 0:00:26.9]} 23. Rc7 {[%clk 0:01:15.1]} 23... Re8
{[%clk 0:00:20.3]} 24. Bxe7+ {[%clk 0:01:07.3]} 24... Rexe7 {[%clk 0:00:15.1]}
25. Qf6+ {[%clk 0:01:07.4]} 25... Qf7 {[%clk 0:00:11.4]} 26. Rc8+ {[%clk
0:01:02.4]} 26... Re8 {[%clk 0:00:12.3]} 27. Rxe8+ {[%clk 0:01:01.2]} 27... Kxe8
{[%clk 0:00:11.3]} 28. Re1+ {[%clk 0:01:01.5]} 28... Kd7 {[%clk 0:00:11.5]} 29.
Qxa6 {[%clk 0:00:59.8]} 1-0

[Event "Late-Titled-Tuesday-Blitz-May-28-2024"]
[Site "Chess.com"]
[Date "2024.05.28"]
[Round "3"]
[White "BabageldiAnnaberdiyev"]
[Black "merinasian"]
[Result "1-0"]
[WhiteElo "2595"]
[BlackElo "2433"]
[TimeControl "180+1"]
[EndTime "14:27:39 PDT"]
[Termination "BabageldiAnnaberdiyev won by resignation"]

1. e4 {[%clk 0:03:00.9]} 1... d6 {[%clk 0:02:55.8]} 2. d4 {[%clk 0:03:00]} 2...
Nd7 {[%clk 0:02:55.9]} 3. Nc3 {[%clk 0:03:00.2]} 3... g6 {[%clk 0:02:56.3]} 4.
h4 {[%clk 0:02:53]} 4... h6 {[%clk 0:02:54.9]} 5. Be3 {[%clk 0:02:49.3]} 5...
Bg7 {[%clk 0:02:54.9]} 6. f3 {[%clk 0:02:48.8]} 6... a6 {[%clk 0:02:55]} 7. a4
{[%clk 0:02:47.6]} 7... b6 {[%clk 0:02:55.1]} 8. Bc4 {[%clk 0:02:45.4]} 8... Bb7
{[%clk 0:02:54.6]} 9. Nh3 {[%clk 0:02:44.5]} 9... e6 {[%clk 0:02:54.7]} 10. Qd2
{[%clk 0:02:43]} 10... Ne7 {[%clk 0:02:54.5]} 11. Nf2 {[%clk 0:02:35.3]} 11...
d5 {[%clk 0:02:45.8]} 12. exd5 {[%clk 0:02:32.2]} 12... Nxd5 {[%clk 0:02:46.4]}
13. Nxd5 {[%clk 0:02:23.8]} 13... Bxd5 {[%clk 0:02:43.2]} 14. Bxd5 {[%clk
0:02:23.8]} 14... exd5 {[%clk 0:02:44.1]} 15. Nd3 {[%clk 0:02:22.1]} 15... Kf8
{[%clk 0:01:59.3]} 16. b4 {[%clk 0:02:08.3]} 16... Kg8 {[%clk 0:01:56.4]} 17.
Kf2 {[%clk 0:02:06.8]} 17... Kh7 {[%clk 0:01:55.4]} 18. b5 {[%clk 0:01:47]}
18... axb5 {[%clk 0:01:43.8]} 19. axb5 {[%clk 0:01:47.9]} 19... Rxa1 {[%clk
0:01:43.1]} 20. Rxa1 {[%clk 0:01:47.6]} 20... Qxh4+ {[%clk 0:01:43.7]} 21. Kg1
{[%clk 0:01:47.5]} 21... Bxd4 {[%clk 0:01:42.6]} 22. c3 {[%clk 0:01:45.6]} 22...
Be5 {[%clk 0:01:32.8]} 23. Nxe5 {[%clk 0:01:39.1]} 23... Nxe5 {[%clk 0:01:32.7]}
24. Qxd5 {[%clk 0:01:38.7]} 24... Qg3 {[%clk 0:01:19]} 25. Bd4 {[%clk
0:01:34.1]} 25... Re8 {[%clk 0:00:33.9]} 26. Bxe5 {[%clk 0:01:33.7]} 26... Qxe5
{[%clk 0:00:34.5]} 27. Qxf7+ {[%clk 0:01:33.4]} 27... Kh8 {[%clk 0:00:31.5]} 28.
Rd1 {[%clk 0:01:22.3]} 28... Qc5+ {[%clk 0:00:26.6]} 29. Rd4 {[%clk 0:01:19.1]}
29... Qe5 {[%clk 0:00:12.6]} 30. Qxg6 {[%clk 0:01:08.8]} 30... Qe1+ {[%clk
0:00:11]} 31. Kh2 {[%clk 0:01:09.3]} 31... Qh4+ {[%clk 0:00:11.2]} 32. Rxh4
{[%clk 0:01:07.5]} 1-0

[Event "Late-Titled-Tuesday-Blitz-May-28-2024"]
[Site "Chess.com"]
[Date "2024.05.28"]
[Round "3"]
[White "DeTimmerman"]
[Black "SHIVACalypso"]
[Result "1-0"]
[WhiteElo "2748"]
[BlackElo "2546"]
[TimeControl "180+1"]
[EndTime "14:27:41 PDT"]
[Termination "DeTimmerman won by resignation"]

1. b4 {[%clk 0:03:00.5]} 1... a5 {[%clk 0:02:58.4]} 2. b5 {[%clk 0:03:00.1]}
2... a4 {[%clk 0:02:58.1]} 3. Bb2 {[%clk 0:03:00.2]} 3... Nf6 {[%clk 0:02:56.5]}
4. c4 {[%clk 0:03:00]} 4... e6 {[%clk 0:02:51.2]} 5. a3 {[%clk 0:03:00.1]} 5...
d5 {[%clk 0:02:49.1]} 6. e3 {[%clk 0:02:59.8]} 6... dxc4 {[%clk 0:02:45.3]} 7.
Bxc4 {[%clk 0:03:00.7]} 7... Nbd7 {[%clk 0:02:45.4]} 8. Nf3 {[%clk 0:03:00]}
8... Nb6 {[%clk 0:02:40]} 9. Be2 {[%clk 0:02:59.3]} 9... Bd6 {[%clk 0:02:38]}
10. O-O {[%clk 0:02:58.5]} 10... O-O {[%clk 0:02:36.1]} 11. d4 {[%clk
0:02:57.3]} 11... Bd7 {[%clk 0:02:33.1]} 12. Nbd2 {[%clk 0:02:55.8]} 12... Qe8
{[%clk 0:02:31]} 13. Rb1 {[%clk 0:02:39.6]} 13... Bxb5 {[%clk 0:02:27.2]} 14.
Bxb5 {[%clk 0:02:40.5]} 14... Qxb5 {[%clk 0:02:26.7]} 15. Bc3 {[%clk 0:02:41.4]}
15... Qh5 {[%clk 0:02:23.5]} 16. Bb4 {[%clk 0:02:40.1]} 16... Bxb4 {[%clk
0:02:14]} 17. Rxb4 {[%clk 0:02:41]} 17... Rfd8 {[%clk 0:02:04.7]} 18. Qc2 {[%clk
0:02:35.4]} 18... Nfd5 {[%clk 0:01:58.6]} 19. Rb5 {[%clk 0:02:34.5]} 19... Qg6
{[%clk 0:01:47.3]} 20. Qb2 {[%clk 0:02:28.3]} 20... h5 {[%clk 0:01:39]} 21. Ne5
{[%clk 0:02:28.2]} 21... Qf6 {[%clk 0:01:32]} 22. Ne4 {[%clk 0:02:23.6]} 22...
Qe7 {[%clk 0:01:30.6]} 23. Nc5 {[%clk 0:02:24]} 23... Rab8 {[%clk 0:01:24.3]}
24. Qc2 {[%clk 0:02:18]} 24... c6 {[%clk 0:01:15.4]} 25. Rb2 {[%clk 0:02:16.9]}
25... Nd7 {[%clk 0:01:07.9]} 26. Nexd7 {[%clk 0:02:06.8]} 26... Rxd7 {[%clk
0:01:07.8]} 27. Nxd7 {[%clk 0:02:07.7]} 27... Qxd7 {[%clk 0:01:07.6]} 28. Rfb1
{[%clk 0:02:08.2]} 28... b5 {[%clk 0:01:06.3]} 29. Rc1 {[%clk 0:02:05.8]} 29...
Ne7 {[%clk 0:00:57.4]} 30. Qc5 {[%clk 0:02:04]} 30... f6 {[%clk 0:00:53.6]} 31.
Qxh5 {[%clk 0:02:03.4]} 31... Nd5 {[%clk 0:00:51.7]} 32. Qd1 {[%clk 0:01:59.4]}
32... b4 {[%clk 0:00:49.2]} 33. Qxa4 {[%clk 0:01:59.2]} 33... Qd6 {[%clk
0:00:46.6]} 34. Qxc6 {[%clk 0:01:55.2]} 34... Qxc6 {[%clk 0:00:39.9]} 35. Rxc6
{[%clk 0:01:56.1]} 35... Ra8 {[%clk 0:00:39.5]} 36. a4 {[%clk 0:01:42.9]} 36...
Rxa4 {[%clk 0:00:35.8]} 37. g3 {[%clk 0:01:41.5]} 37... Kf7 {[%clk 0:00:32.3]}
38. e4 {[%clk 0:01:31.5]} 38... Nc3 {[%clk 0:00:31.4]} 39. f3 {[%clk 0:01:29.7]}
39... Ra1+ {[%clk 0:00:25]} 40. Kg2 {[%clk 0:01:28.6]} 40... Na2 {[%clk
0:00:14.8]} 41. Ra6 {[%clk 0:01:27.4]} 1-0

[Event "Late-Titled-Tuesday-Blitz-May-28-2024"]
[Site "Chess.com"]
[Date "2024.05.28"]
[Round "3"]
[White "crazycheesecake"]
[Black "Timurist"]
[Result "0-1"]
[WhiteElo "2138"]
[BlackElo "2397"]
[TimeControl "180+1"]
[EndTime "14:27:42 PDT"]
[Termination "Timurist won on time"]

1. e4 {[%clk 0:03:00.9]} 1... c5 {[%clk 0:02:59.5]} 2. Nf3 {[%clk 0:03:00.1]}
2... Nc6 {[%clk 0:02:59]} 3. d4 {[%clk 0:03:00.2]} 3... cxd4 {[%clk 0:02:59.6]}
4. Nxd4 {[%clk 0:03:01.1]} 4... g6 {[%clk 0:02:59.7]} 5. c4 {[%clk 0:03:00.8]}
5... Bg7 {[%clk 0:02:59.6]} 6. Nc2 {[%clk 0:03:01.2]} 6... Nf6 {[%clk
0:02:59.4]} 7. Nc3 {[%clk 0:03:00.8]} 7... O-O {[%clk 0:02:59.7]} 8. Be2 {[%clk
0:02:55.6]} 8... d6 {[%clk 0:02:57.6]} 9. O-O {[%clk 0:02:55.5]} 9... a5 {[%clk
0:02:51]} 10. Be3 {[%clk 0:02:47.4]} 10... Nd7 {[%clk 0:02:39.8]} 11. Qd2 {[%clk
0:02:21.3]} 11... a4 {[%clk 0:02:35]} 12. Nd4 {[%clk 0:01:15.9]} 12... Nxd4
{[%clk 0:02:22.8]} 13. Bxd4 {[%clk 0:01:12.1]} 13... Qa5 {[%clk 0:01:59]} 14.
Bxg7 {[%clk 0:00:54.1]} 14... Kxg7 {[%clk 0:01:58.5]} 15. Qd4+ {[%clk
0:00:42.7]} 15... Kg8 {[%clk 0:01:53.7]} 16. Nd5 {[%clk 0:00:32.5]} 16... Re8
{[%clk 0:01:50.8]} 17. b4 {[%clk 0:00:21.4]} 17... Qd8 {[%clk 0:01:34.9]} 18.
Rfd1 {[%clk 0:00:16.1]} 18... Ne5 {[%clk 0:01:26.7]} 19. c5 {[%clk 0:00:14.3]}
19... Nc6 {[%clk 0:01:21.6]} 20. Qd2 {[%clk 0:00:10.7]} 20... dxc5 {[%clk
0:01:18.3]} 21. b5 {[%clk 0:00:10.4]} 21... Nd4 {[%clk 0:01:18]} 22. Bc4 {[%clk
0:00:08.8]} 22... Bg4 {[%clk 0:01:14.4]} 23. f3 {[%clk 0:00:07.9]} 23... Bxf3
{[%clk 0:01:14.7]} 24. Rf1 {[%clk 0:00:05]} 24... Bxe4 {[%clk 0:01:07.5]} 25.
Ne3 {[%clk 0:00:01.7]} 25... e6 {[%clk 0:01:01.1]} 26. Rad1 {[%clk 0:00:00.9]}
26... Nf3+ {[%clk 0:00:57.4]} 0-1

[Event "Late-Titled-Tuesday-Blitz-May-28-2024"]
[Site "Chess.com"]
[Date "2024.05.28"]
[Round "3"]
[White "nitpicker"]
[Black "JohnWhite1952"]
[Result "0-1"]
[WhiteElo "2321"]
[BlackElo "2021"]
[TimeControl "180+1"]
[EndTime "14:27:50 PDT"]
[Termination "JohnWhite1952 won on time"]

1. d4 {[%clk 0:03:00.9]} 1... Nf6 {[%clk 0:02:58]} 2. c4 {[%clk 0:02:57]} 2...
g6 {[%clk 0:02:57.4]} 3. Nc3 {[%clk 0:02:56.2]} 3... d5 {[%clk 0:02:56.9]} 4.
Qb3 {[%clk 0:02:55.4]} 4... dxc4 {[%clk 0:02:52]} 5. Qxc4 {[%clk 0:02:56.3]}
5... Bg7 {[%clk 0:02:51.1]} 6. e4 {[%clk 0:02:56.3]} 6... O-O {[%clk 0:02:49.5]}
7. Be2 {[%clk 0:02:48.2]} 7... Nfd7 {[%clk 0:02:40.1]} 8. Nf3 {[%clk 0:02:41.1]}
8... Nc6 {[%clk 0:02:39.1]} 9. Be3 {[%clk 0:02:36.4]} 9... Nb6 {[%clk
0:02:38.1]} 10. Qc5 {[%clk 0:02:36.2]} 10... Bg4 {[%clk 0:02:33.6]} 11. O-O-O
{[%clk 0:02:29.7]} 11... a5 {[%clk 0:02:18.9]} 12. Kb1 {[%clk 0:02:24.4]} 12...
a4 {[%clk 0:02:16.8]} 13. h3 {[%clk 0:02:11]} 13... Bxf3 {[%clk 0:02:06.3]} 14.
Bxf3 {[%clk 0:02:10.4]} 14... a3 {[%clk 0:02:05.2]} 15. b4 {[%clk 0:01:35]}
15... Na4 {[%clk 0:01:47.8]} 16. Nxa4 {[%clk 0:01:04.1]} 16... Rxa4 {[%clk
0:01:46.3]} 17. e5 {[%clk 0:00:55.3]} 17... Rxb4+ {[%clk 0:01:42.8]} 18. Ka1
{[%clk 0:00:55.3]} 18... Rb6 {[%clk 0:01:13.2]} 19. Qxa3 {[%clk 0:00:47.2]}
19... Nxe5 {[%clk 0:01:02]} 20. Be2 {[%clk 0:00:36]} 20... Nc6 {[%clk
0:00:53.1]} 21. Rd2 {[%clk 0:00:33]} 21... Nxd4 {[%clk 0:00:44.7]} 0-1

[Event "Late-Titled-Tuesday-Blitz-May-28-2024"]
[Site "Chess.com"]
[Date "2024.05.28"]
[Round "3"]
[White "RAU4ever"]
[Black "N_Mullodzhanov"]
[Result "1/2-1/2"]
[WhiteElo "2343"]
[BlackElo "2509"]
[TimeControl "180+1"]
[EndTime "14:27:52 PDT"]
[Termination "Game drawn by repetition"]

1. e4 {[%clk 0:03:00.9]} 1... c6 {[%clk 0:03:00.1]} 2. d4 {[%clk 0:03:00.5]}
2... d5 {[%clk 0:03:00.4]} 3. e5 {[%clk 0:03:00.7]} 3... Bf5 {[%clk 0:03:00.1]}
4. Nf3 {[%clk 0:02:59.7]} 4... e6 {[%clk 0:03:00.2]} 5. Be2 {[%clk 0:03:00.1]}
5... c5 {[%clk 0:03:00.1]} 6. Be3 {[%clk 0:02:58.9]} 6... Qb6 {[%clk 0:03:00.3]}
7. Nc3 {[%clk 0:02:51.9]} 7... Qxb2 {[%clk 0:02:46.6]} 8. Nb5 {[%clk 0:02:44.2]}
8... c4 {[%clk 0:02:46.6]} 9. Nc7+ {[%clk 0:02:23.9]} 9... Kd7 {[%clk
0:02:46.6]} 10. Nxa8 {[%clk 0:02:24.8]} 10... Bxc2 {[%clk 0:02:45.9]} 11. Qc1
{[%clk 0:02:22.8]} 11... Ba3 {[%clk 0:02:45.5]} 12. O-O {[%clk 0:02:17.4]} 12...
Nc6 {[%clk 0:02:28.9]} 13. Ne1 {[%clk 0:02:00.9]} 13... Ba4 {[%clk 0:02:11.2]}
14. Qxb2 {[%clk 0:01:29]} 14... Bxb2 {[%clk 0:02:10.9]} 15. Rb1 {[%clk
0:01:29.9]} 15... c3 {[%clk 0:02:09.5]} 16. Nd3 {[%clk 0:01:30.5]} 16... Bc2
{[%clk 0:02:06.6]} 17. Nxb2 {[%clk 0:01:14.5]} 17... Bxb1 {[%clk 0:02:04.1]} 18.
Na4 {[%clk 0:01:03.5]} 18... Bxa2 {[%clk 0:01:47.7]} 19. Nxc3 {[%clk 0:01:00]}
19... Bc4 {[%clk 0:01:42.3]} 20. Bxc4 {[%clk 0:00:58.9]} 20... dxc4 {[%clk
0:01:43.2]} 21. Rb1 {[%clk 0:00:55.9]} 21... Kc8 {[%clk 0:01:24.6]} 22. Nb5
{[%clk 0:00:51]} 22... Kb8 {[%clk 0:01:09]} 23. Nac7 {[%clk 0:00:44.1]} 23...
Nge7 {[%clk 0:01:07.6]} 24. Nd6 {[%clk 0:00:30.9]} 24... Kxc7 {[%clk 0:00:35.1]}
25. Rxb7+ {[%clk 0:00:30.5]} 25... Kd8 {[%clk 0:00:35.1]} 26. Nxf7+ {[%clk
0:00:30.8]} 26... Kc8 {[%clk 0:00:35.2]} 27. Nd6+ {[%clk 0:00:30.4]} 27... Kd8
{[%clk 0:00:34.6]} 28. Nf7+ {[%clk 0:00:19.6]} 28... Kc8 {[%clk 0:00:34.3]} 29.
Nd6+ {[%clk 0:00:20.1]} 29... Kd8 {[%clk 0:00:33.5]} 30. Nf7+ {[%clk 0:00:18.6]}
1/2-1/2

[Event "Late-Titled-Tuesday-Blitz-May-28-2024"]
[Site "Chess.com"]
[Date "2024.05.28"]
[Round "3"]
[White "Onthequiet"]
[Black "karinachess1"]
[Result "0-1"]
[WhiteElo "2447"]
[BlackElo "2617"]
[TimeControl "180+1"]
[EndTime "14:27:53 PDT"]
[Termination "karinachess1 won by checkmate"]

1. d4 {[%clk 0:02:59.2]} 1... Nf6 {[%clk 0:03:00]} 2. Nf3 {[%clk 0:02:59.6]}
2... e6 {[%clk 0:03:00.5]} 3. c4 {[%clk 0:02:59.4]} 3... d5 {[%clk 0:03:00.8]}
4. Nc3 {[%clk 0:02:59.3]} 4... Bb4 {[%clk 0:03:00.5]} 5. a3 {[%clk 0:02:58.9]}
5... Bxc3+ {[%clk 0:02:58.6]} 6. bxc3 {[%clk 0:02:59.8]} 6... O-O {[%clk
0:02:59.2]} 7. Bg5 {[%clk 0:02:59.3]} 7... c5 {[%clk 0:02:59.3]} 8. cxd5 {[%clk
0:02:57.7]} 8... exd5 {[%clk 0:02:58.2]} 9. e3 {[%clk 0:02:57.3]} 9... h6 {[%clk
0:02:57.7]} 10. Bh4 {[%clk 0:02:57.1]} 10... g5 {[%clk 0:02:54.3]} 11. Bg3
{[%clk 0:02:55.1]} 11... Ne4 {[%clk 0:02:54.5]} 12. dxc5 {[%clk 0:02:30.3]}
12... Nc6 {[%clk 0:02:44.7]} 13. Nd4 {[%clk 0:02:17.6]} 13... Nxc3 {[%clk
0:02:35.8]} 14. Qh5 {[%clk 0:02:11.5]} 14... Ne4 {[%clk 0:02:23.8]} 15. Bd3
{[%clk 0:02:03]} 15... Qa5+ {[%clk 0:02:06.4]} 16. Kf1 {[%clk 0:02:03]} 16...
Nxd4 {[%clk 0:01:58.8]} 17. Bxe4 {[%clk 0:01:36]} 17... Qa6+ {[%clk 0:01:47.4]}
18. Ke1 {[%clk 0:01:35.7]} 18... Nb3 {[%clk 0:01:17.4]} 19. Bd6 {[%clk
0:00:48.4]} 19... Qa5+ {[%clk 0:01:02.4]} 20. Kf1 {[%clk 0:00:45.9]} 20... Qc3
{[%clk 0:00:39.4]} 21. Bh7+ {[%clk 0:00:25]} 21... Kxh7 {[%clk 0:00:34]} 22.
Bxf8 {[%clk 0:00:22.1]} 22... Qxa1+ {[%clk 0:00:33.1]} 23. Ke2 {[%clk
0:00:22.4]} 23... Qb2+ {[%clk 0:00:31.9]} 24. Kf3 {[%clk 0:00:22.5]} 24... Nd2+
{[%clk 0:00:28.4]} 25. Kg3 {[%clk 0:00:21.8]} 25... Ne4+ {[%clk 0:00:28.6]} 26.
Kf3 {[%clk 0:00:22.2]} 26... Qxf2# {[%clk 0:00:28.6]} 0-1

[Event "Late-Titled-Tuesday-Blitz-May-28-2024"]
[Site "Chess.com"]
[Date "2024.05.28"]
[Round "3"]
[White "zsizsi99"]
[Black "rhwr"]
[Result "1-0"]
[WhiteElo "2547"]
[BlackElo "2340"]
[TimeControl "180+1"]
[EndTime "14:27:54 PDT"]
[Termination "zsizsi99 won by checkmate"]

1. e4 {[%clk 0:02:33.7]} 1... c5 {[%clk 0:02:58.9]} 2. Nf3 {[%clk 0:02:32.2]}
2... d6 {[%clk 0:02:58.6]} 3. Bb5+ {[%clk 0:02:29.1]} 3... Nd7 {[%clk
0:02:55.5]} 4. d4 {[%clk 0:02:23.8]} 4... cxd4 {[%clk 0:02:53.2]} 5. Qxd4 {[%clk
0:02:23]} 5... a6 {[%clk 0:02:51.7]} 6. Bxd7+ {[%clk 0:02:20]} 6... Bxd7 {[%clk
0:02:51.4]} 7. O-O {[%clk 0:02:20.2]} 7... Qc7 {[%clk 0:02:50.6]} 8. Nc3 {[%clk
0:02:03.3]} 8... e5 {[%clk 0:02:48.2]} 9. Nd5 {[%clk 0:01:52.6]} 9... Qd8 {[%clk
0:02:28.7]} 10. Nxe5 {[%clk 0:01:40.1]} 10... Be6 {[%clk 0:02:02.2]} 11. Nc4
{[%clk 0:01:25.6]} 11... Nf6 {[%clk 0:01:51.9]} 12. Bg5 {[%clk 0:01:05]} 12...
Be7 {[%clk 0:01:45]} 13. Nxe7 {[%clk 0:01:03]} 13... Qxe7 {[%clk 0:01:39.4]} 14.
Nxd6+ {[%clk 0:00:59.2]} 14... Kf8 {[%clk 0:01:37]} 15. e5 {[%clk 0:00:53.5]}
15... Rg8 {[%clk 0:01:24.4]} 16. exf6 {[%clk 0:00:32.3]} 16... gxf6 {[%clk
0:01:20.4]} 17. Bh6+ {[%clk 0:00:27.2]} 17... Rg7 {[%clk 0:01:20.9]} 18. Bxg7+
{[%clk 0:00:27.7]} 18... Kxg7 {[%clk 0:01:21.1]} 19. Rfe1 {[%clk 0:00:26.2]}
19... Kh8 {[%clk 0:01:13.5]} 20. Ne4 {[%clk 0:00:24.5]} 20... Kg7 {[%clk
0:01:11.9]} 21. Nc5 {[%clk 0:00:22.1]} 21... Rd8 {[%clk 0:01:08.7]} 22. Nxe6+
{[%clk 0:00:18.6]} 22... fxe6 {[%clk 0:01:07.2]} 23. Rxe6 {[%clk 0:00:18.6]}
23... Qf8 {[%clk 0:01:04.3]} 24. Qg4+ {[%clk 0:00:17.8]} 24... Kh8 {[%clk
0:01:03.9]} 25. Rae1 {[%clk 0:00:16.1]} 25... Qf7 {[%clk 0:00:50.8]} 26. Re7
{[%clk 0:00:15]} 26... Qg6 {[%clk 0:00:43.6]} 27. Qxg6 {[%clk 0:00:15]} 27...
hxg6 {[%clk 0:00:43.8]} 28. Rxb7 {[%clk 0:00:14.9]} 28... Rd2 {[%clk 0:00:42.7]}
29. Re8# {[%clk 0:00:14.4]} 1-0

[Event "Late-Titled-Tuesday-Blitz-May-28-2024"]
[Site "Chess.com"]
[Date "2024.05.28"]
[Round "3"]
[White "only_strong_moves"]
[Black "Msb2"]
[Result "0-1"]
[WhiteElo "2711"]
[BlackElo "3032"]
[TimeControl "180+1"]
[EndTime "14:27:57 PDT"]
[Termination "Msb2 won by resignation"]

1. Nc3 {[%clk 0:03:00.9]} 1... d5 {[%clk 0:03:00.3]} 2. e4 {[%clk 0:03:00.3]}
2... e6 {[%clk 0:03:00.8]} 3. d4 {[%clk 0:02:58]} 3... Nf6 {[%clk 0:03:01.1]} 4.
e5 {[%clk 0:02:57.9]} 4... Nfd7 {[%clk 0:03:01.4]} 5. Nce2 {[%clk 0:02:58.3]}
5... c5 {[%clk 0:03:01.9]} 6. c3 {[%clk 0:02:58.3]} 6... Nc6 {[%clk 0:03:02.7]}
7. Nf3 {[%clk 0:02:54.4]} 7... Be7 {[%clk 0:03:03.1]} 8. Nf4 {[%clk 0:02:54.4]}
8... cxd4 {[%clk 0:03:03.2]} 9. cxd4 {[%clk 0:02:54.3]} 9... Qb6 {[%clk
0:03:03.8]} 10. a3 {[%clk 0:02:53.6]} 10... g5 {[%clk 0:03:02.8]} 11. Ne2 {[%clk
0:02:28.4]} 11... g4 {[%clk 0:03:03]} 12. Nfg1 {[%clk 0:02:28.3]} 12... Na5
{[%clk 0:02:53]} 13. f3 {[%clk 0:02:14.9]} 13... Nb3 {[%clk 0:02:49.1]} 14. Rb1
{[%clk 0:02:13.5]} 14... h5 {[%clk 0:02:48.1]} 15. h3 {[%clk 0:02:08.8]} 15...
g3 {[%clk 0:02:45.1]} 16. h4 {[%clk 0:02:03.6]} 16... Nxe5 {[%clk 0:02:38.2]}
17. Bf4 {[%clk 0:01:35.9]} 17... Nc6 {[%clk 0:02:27.2]} 18. Bxg3 {[%clk
0:01:25.9]} 18... Bf6 {[%clk 0:02:27.3]} 19. Bf2 {[%clk 0:01:22.9]} 19... Nbxd4
{[%clk 0:02:10.7]} 20. Nxd4 {[%clk 0:01:20.2]} 20... Bxd4 {[%clk 0:02:10.5]} 21.
Bxd4 {[%clk 0:01:19.4]} 21... Qxd4 {[%clk 0:02:11.4]} 22. Qxd4 {[%clk
0:01:15.5]} 22... Nxd4 {[%clk 0:02:12.3]} 23. Ne2 {[%clk 0:01:11.1]} 23... Nxe2
{[%clk 0:02:10]} 24. Bxe2 {[%clk 0:01:12]} 24... Bd7 {[%clk 0:02:10.7]} 25. Rc1
{[%clk 0:01:11.9]} 25... Bc6 {[%clk 0:02:10.7]} 26. b4 {[%clk 0:01:11.3]} 26...
a6 {[%clk 0:02:10.4]} 27. Kf2 {[%clk 0:01:09.6]} 27... Ke7 {[%clk 0:02:09.4]}
28. Rhe1 {[%clk 0:01:08.3]} 28... Kd6 {[%clk 0:02:08]} 29. Bd3 {[%clk
0:01:05.3]} 29... e5 {[%clk 0:02:07.6]} 30. Rcd1 {[%clk 0:00:52]} 30... f6
{[%clk 0:02:05.4]} 31. Rc1 {[%clk 0:00:45.8]} 31... Raf8 {[%clk 0:02:02.9]} 32.
Bf5 {[%clk 0:00:45.6]} 32... Bd7 {[%clk 0:01:58.3]} 33. Bxd7 {[%clk 0:00:44.6]}
33... Kxd7 {[%clk 0:01:59.2]} 34. Red1 {[%clk 0:00:45.3]} 34... d4 {[%clk
0:01:54.9]} 35. Rc5 {[%clk 0:00:44.1]} 35... Rc8 {[%clk 0:01:54.8]} 36. Rdc1
{[%clk 0:00:38.9]} 36... Rxc5 {[%clk 0:01:51.2]} 37. Rxc5 {[%clk 0:00:39.8]}
37... Rc8 {[%clk 0:01:40.1]} 38. Rxc8 {[%clk 0:00:39.1]} 38... Kxc8 {[%clk
0:01:41]} 39. g4 {[%clk 0:00:39.8]} 39... Kd7 {[%clk 0:01:41.7]} 40. Ke2 {[%clk
0:00:23.2]} 40... hxg4 {[%clk 0:01:23.8]} 41. fxg4 {[%clk 0:00:22.3]} 41... e4
{[%clk 0:01:24.4]} 42. a4 {[%clk 0:00:21]} 42... b5 {[%clk 0:01:24.1]} 43. a5
{[%clk 0:00:21.2]} 43... Ke6 {[%clk 0:01:24]} 44. h5 {[%clk 0:00:20.3]} 44...
Kf7 {[%clk 0:01:24]} 45. Kd2 {[%clk 0:00:19.9]} 45... Kg7 {[%clk 0:01:24.6]} 46.
Ke2 {[%clk 0:00:20.1]} 46... Kh6 {[%clk 0:01:25.1]} 47. Kf2 {[%clk 0:00:19.9]}
47... f5 {[%clk 0:01:25.4]} 48. gxf5 {[%clk 0:00:19.9]} 48... Kxh5 {[%clk
0:01:25.8]} 49. Kg3 {[%clk 0:00:20.5]} 49... Kg5 {[%clk 0:01:26.2]} 50. f6
{[%clk 0:00:21.1]} 50... Kxf6 {[%clk 0:01:26.7]} 51. Kf4 {[%clk 0:00:22]} 51...
e3 {[%clk 0:01:27.2]} 52. Ke4 {[%clk 0:00:22.9]} 52... e2 {[%clk 0:01:27.4]} 53.
Kxd4 {[%clk 0:00:23.8]} 53... e1=Q {[%clk 0:01:27.9]} 54. Kc5 {[%clk 0:00:24.7]}
54... Qe6 {[%clk 0:01:26.6]} 55. Kd4 {[%clk 0:00:23.9]} 55... Qc4+ {[%clk
0:01:27.5]} 0-1